[Event "European Womens-ch 2025"]
[Site "Rhodes"]
[Date "2025.04.11"]
[Round "11.3"]
[White "Ushenina, Anna"]
[Black "Tsolakidou, Stavroula"]
[Result "1/2-1/2"]
[Annotator "ChessBase"]
[ECO "E63"]
[WhiteElo "2428"]
[BlackElo "2445"]
[PlyCount "56"]
[EventDate "2025.03.29"]
[EventType "swiss"]
[EventCountry "GRE"]
[SourceTitle "playchess.com"]
[Source "ChessBase"]
[SourceQuality "1"]
[TimeControl "40/5400+30:1800+30"]

1. d4 {[%emt 0:00:33]} Nf6 {[%emt 0:00:57]} 2. c4 {[%emt 0:00:26]} g6 {[%emt 0:00:17]} 3. Nc3 {[%emt 0:00:40]} Bg7 {[%emt 0:00:11]} 4. g3 {[%emt 0:00:20]} O-O {[%emt 0:00:41]} 5. Bg2 {[%emt 0:00:08]} d6 {[%emt 0:00:14]} 6. Nf3 {[%emt 0:00:05]} Nc6 {[%emt 0:00:41]} 7. d5 {[%emt 0:00:24]} Na5 {[%emt 0:00:35]} 8. b3 {[%emt 0:01:25]} c5 {[%emt 0:00:51]} 9. Bb2 {[%emt 0:00:17]} a6 {[%emt 0:02:20]} 10. O-O {[%emt 0:02:39]} Rb8 {[%emt 0:00:26]} 11. Nd2 {[%emt 0:00:50]} b5 {[%emt 0:00:38]} 12. Qc1 {[%emt 0:00:21]} Re8 {[%emt 0:08:30]} 13. Re1 {[%emt 0:25:09]} e5 {[%emt 0:09:39]} 14. dxe6 {[%emt 0:02:49]} Bxe6 {[%emt 0:07:58]} 15. cxb5 {[%emt 0:04:12]} axb5 {[%emt 0:03:53]} 16. Nce4 {[%emt 0:00:12]} Bf5 {[%emt 0:12:37]} 17. Nxf6+ {[%emt 0:07:41]} Bxf6 {[%emt 0:00:05]} 18. Bxf6 {[%emt 0:23:23]} Qxf6 {[%emt 0:00:05]} 19. e4 {[%emt 0:00:04]} Bd7 {[%emt 0:05:52]} 20. e5 {[%emt 0:12:04]} Rxe5 {[%emt 0:07:57]} 21. Ne4 {[%emt 0:00:03]} Qe7 {[%emt 0:00:51]} 22. Qd2 {[%emt 0:03:17]} Re8 {[%emt 0:04:08]} 23. Qxa5 {[%emt 0:03:04]} d5 {[%emt 0:02:06]} 24. Rad1 {[%emt 0:07:16]} dxe4 {[%emt 0:08:37]} 25. Rxe4 {[%emt 0:02:05]} Rxe4 {[%emt 0:05:34]} 26. Bxe4 {[%emt 0:00:03]} Qxe4 {[%emt 0:07:44]} 27. Rxd7 {[%emt 0:00:03]} Qb1+ {[%emt 0:02:24]} 28. Kg2 {[%emt 0:00:01]} Qe4+ {[%emt 0:00:05]} 1/2-1/2

[Event "European Womens-ch 2025"]
[Site "Rhodes"]
[Date "2025.04.11"]
[Round "11.4"]
[White "Kulon, Klaudia"]
[Black "Javakhishvili, Lela"]
[Result "1/2-1/2"]
[Annotator "ChessBase"]
[ECO "C47"]
[WhiteElo "2401"]
[BlackElo "2429"]
[PlyCount "21"]
[EventDate "2025.03.29"]
[EventType "swiss"]
[EventCountry "GRE"]
[SourceTitle "playchess.com"]
[Source "ChessBase"]
[SourceQuality "1"]
[TimeControl "40/5400+30:1800+30"]

1. e4 {[%emt 0:00:03]} e5 {[%emt 0:00:15]} 2. Nf3 {[%emt 0:00:05]} Nc6 {[%emt 0:00:05]} 3. Nc3 {[%emt 0:00:11]} Nf6 {[%emt 0:00:37]} 4. d4 {[%emt 0:00:13]} exd4 {[%emt 0:00:25]} 5. Nxd4 {[%emt 0:00:06]} Bb4 {[%emt 0:00:12]} 6. Nxc6 {[%emt 0:00:13]} bxc6 {[%emt 0:00:05]} 7. Bd3 {[%emt 0:00:10]} d5 {[%emt 0:00:33]} 8. exd5 {[%emt 0:00:11]} O-O {[%emt 0:00:08]} 9. O-O {[%emt 0:00:09]} cxd5 {[%emt 0:00:19]} 10. Bg5 {[%emt 0:00:28]} Be6 {[%emt 0:03:29]} 11. Qf3 {[%emt 0:01:08]} 1/2-1/2

[Event "European Womens-ch 2025"]
[Site "Rhodes"]
[Date "2025.04.11"]
[Round "11.5"]
[White "Daulyte-Cornette, Deimante"]
[Black "Mkrtchian, Lilit"]
[Result "1/2-1/2"]
[Annotator "ChessBase"]
[ECO "B12"]
[WhiteElo "2389"]
[BlackElo "2388"]
[PlyCount "81"]
[EventDate "2025.03.29"]
[EventType "swiss"]
[EventCountry "GRE"]
[SourceTitle "playchess.com"]
[Source "ChessBase"]
[SourceQuality "1"]
[TimeControl "40/5400+30:1800+30"]

1. e4 {[%emt 0:00:03]} c6 {[%emt 0:00:29]} 2. d4 {[%emt 0:00:15]} d5 {[%emt 0:00:07]} 3. e5 {[%emt 0:00:24]} c5 {[%emt 0:00:29]} 4. Nf3 {[%emt 0:01:10]} cxd4 {[%emt 0:00:19]} 5. Qxd4 {[%emt 0:00:19]} Nc6 {[%emt 0:01:29]} 6. Qf4 {[%emt 0:00:11]} e6 {[%emt 0:01:46]} 7. Nc3 {[%emt 0:00:21]} Nge7 {[%emt 0:06:38]} 8. Bd3 {[%emt 0:03:14]} Ng6 {[%emt 0:04:17]} 9. Qg3 {[%emt 0:00:21]} Nb4 {[%emt 0:02:16]} 10. h4 {[%emt 0:08:29]} Nxd3+ {[%emt 0:01:09]} 11. cxd3 {[%emt 0:00:04]} h5 {[%emt 0:00:50]} 12. O-O {[%emt 0:04:40]} Bd7 {[%emt 0:12:27]} 13. Ne2 {[%emt 0:05:28]} Be7 {[%emt 0:29:33]} 14. Bg5 {[%emt 0:05:16]} Bxg5 {[%emt 0:06:49]} 15. Nxg5 {[%emt 0:00:47]} Qb6 {[%emt 0:07:36]} 16. b3 {[%emt 0:15:58]} Qb4 {[%emt 0:04:23]} 17. d4 {[%emt 0:17:51]} Bb5 {[%emt 0:00:18]} 18. Nxe6 {[%emt 0:15:51]} Bxe2 {[%emt 0:00:51]} 19. Nc7+ {[%emt 0:00:48]} Kf8 {[%emt 0:04:15]} 20. Nxa8 {[%emt 0:03:02]} Bxf1 {[%emt 0:00:05]} 21. Rxf1 {[%emt 0:01:12]} Qxd4 {[%emt 0:01:24]} 22. Rc1 {[%emt 0:05:02]} Kg8 {[%emt 0:01:38]} 23. e6 {[%emt 0:00:51]} Kh7 {[%emt 0:01:57]} 24. Nc7 {[%emt 0:01:32]} Nf4 {[%emt 0:07:55]} 25. Qf3 {[%emt 0:01:02]} Qe4 {[%emt 0:03:05]} 26. Qxe4+ {[%emt 0:03:06]} dxe4 {[%emt 0:00:03]} 27. Re1 {[%emt 0:00:14]} Nxe6 {[%emt 0:00:08]} 28. Nxe6 {[%emt 0:00:05]} fxe6 {[%emt 0:00:03]} 29. Rxe4 {[%emt 0:00:07]} Rc8 {[%emt 0:00:52]} 30. Rxe6 {[%emt 0:03:34]} Rc1+ {[%emt 0:00:53]} 31. Kh2 {[%emt 0:00:03]} Rc2 {[%emt 0:00:16]} 32. Re7 {[%emt 0:00:28]} Rxf2 {[%emt 0:01:31]} 33. a3 {[%emt 0:00:39]} Ra2 {[%emt 0:00:26]} 34. a4 {[%emt 0:00:24]} b6 {[%emt 0:00:16]} 35. Rxa7 {[%emt 0:00:44]} Rb2 {[%emt 0:00:08]} 36. Rb7 {[%emt 0:00:20]} Rxb3 {[%emt 0:00:04]} 37. a5 {[%emt 0:00:17]} b5 {[%emt 0:00:07]} 38. a6 {[%emt 0:00:15]} Kh6 {[%emt 0:01:57]} 39. Rb6+ {[%emt 0:00:50]} g6 {[%emt 0:00:07]} 40. Rb8 {[%emt 0:00:00]} Ra3 {[%emt 0:00:00]} 41. Rxb5 {[%emt 0:01:54]} 1/2-1/2

[Event "European Womens-ch 2025"]
[Site "Rhodes"]
[Date "2025.04.11"]
[Round "11.6"]
[White "Batsiashvili, Nino"]
[Black "Brunello, Marina"]
[Result "1-0"]
[Annotator "ChessBase"]
[ECO "D35"]
[WhiteElo "2473"]
[BlackElo "2330"]
[PlyCount "123"]
[EventDate "2025.03.29"]
[EventType "swiss"]
[EventCountry "GRE"]
[SourceTitle "playchess.com"]
[Source "ChessBase"]
[SourceQuality "1"]
[TimeControl "40/5400+30:1800+30"]

1. d4 {[%emt 0:00:01]} d5 {[%emt 0:00:23]} 2. c4 {[%emt 0:00:04]} e6 {[%emt 0:00:03]} 3. Nc3 {[%emt 0:00:04]} Nf6 {[%emt 0:00:06]} 4. cxd5 {[%emt 0:00:15]} exd5 {[%emt 0:00:08]} 5. Bg5 {[%emt 0:00:04]} Be7 {[%emt 0:00:13]} 6. e3 {[%emt 0:00:07]} h6 {[%emt 0:00:06]} 7. Bh4 {[%emt 0:01:30]} c6 {[%emt 0:00:10]} 8. Bd3 {[%emt 0:00:07]} O-O {[%emt 0:00:10]} 9. h3 {[%emt 0:00:49]} Re8 {[%emt 0:03:32]} 10. Bg3 {[%emt 0:00:37]} Bd6 {[%emt 0:20:10]} 11. Nge2 {[%emt 0:00:47]} a5 {[%emt 0:00:48]} 12. O-O {[%emt 0:05:06]} Na6 {[%emt 0:00:20]} 13. Qd2 {[%emt 0:09:31]} Nc7 {[%emt 0:01:56]} 14. f3 {[%emt 0:03:54]} Ne6 {[%emt 0:01:24]} 15. Be5 {[%emt 0:03:27]} Be7 {[%emt 0:06:59]} 16. Rad1 {[%emt 0:04:48]} b5 {[%emt 0:02:53]} 17. e4 {[%emt 0:03:58]} b4 {[%emt 0:16:43]} 18. Na4 {[%emt 0:00:29]} Nd7 {[%emt 0:01:11]} 19. Bg3 {[%emt 0:03:35]} Nb6 {[%emt 0:06:59]} 20. Nxb6 {[%emt 0:03:05]} Qxb6 {[%emt 0:00:05]} 21. Bf2 {[%emt 0:00:07]} Ba6 {[%emt 0:00:42]} 22. Bxa6 {[%emt 0:07:12]} Qxa6 {[%emt 0:00:05]} 23. e5 {[%emt 0:00:06]} Rad8 {[%emt 0:02:44]} 24. f4 {[%emt 0:01:37]} f5 {[%emt 0:01:22]} 25. Rc1 {[%emt 0:08:06]} Rc8 {[%emt 0:01:22]} 26. Kh1 {[%emt 0:14:17]} Rf8 {[%emt 0:01:00]} 27. Be3 {[%emt 0:01:48]} Kh8 {[%emt 0:04:57]} 28. Rc2 {[%emt 0:02:19]} a4 {[%emt 0:09:57]} 29. Rd1 {[%emt 0:01:21]} Rb8 {[%emt 0:03:18]} 30. Rcc1 {[%emt 0:03:08]} Rbc8 {[%emt 0:00:22]} 31. Rg1 {[%emt 0:01:36]} Qb7 {[%emt 0:01:09]} 32. Rgd1 {[%emt 0:04:40]} Qa6 {[%emt 0:00:14]} 33. Qe1 {[%emt 0:01:46]} Qb7 {[%emt 0:00:51]} 34. Qf2 {[%emt 0:00:28]} Bd8 {[%emt 0:00:41]} 35. Qf3 {[%emt 0:00:38]} Ba5 {[%emt 0:00:53]} 36. Bf2 {[%emt 0:03:18]} Bd8 {[%emt 0:01:36]} 37. Rd2 {[%emt 0:00:38]} Ba5 {[%emt 0:00:24]} 38. b3 {[%emt 0:00:50]} Qb5 {[%emt 0:00:46]} 39. Rdc2 {[%emt 0:00:13]} a3 {[%emt 0:01:23]} 40. Qh5 {[%emt 0:00:00]} Kh7 {[%emt 0:00:00]} 41. Qf3 {[%emt 0:05:27]} Bd8 {[%emt 0:03:37]} 42. Rd1 {[%emt 0:01:25]} Be7 {[%emt 0:01:44]} 43. Be3 {[%emt 0:02:14]} Qb7 {[%emt 0:05:40]} 44. Kh2 {[%emt 0:03:25]} Rf7 {[%emt 0:05:14]} 45. g4 {[%emt 0:01:08]} Rcf8 {[%emt 0:01:56]} 46. Rdc1 {[%emt 0:01:26]} fxg4 {[%emt 0:04:38]} 47. Qxg4 {[%emt 0:00:57]} Nd8 {[%emt 0:00:08]} 48. Rg1 {[%emt 0:04:31]} g5 {[%emt 0:06:13]} 49. h4 {[%emt 0:04:02]} Kh8 {[%emt 0:02:13]} 50. fxg5 {[%emt 0:03:47]} hxg5 {[%emt 0:00:19]} 51. hxg5 {[%emt 0:00:22]} Rh7+ {[%emt 0:06:05]} 52. Kg2 {[%emt 0:01:10]} Rg8 {[%emt 0:00:04]} 53. Ng3 {[%emt 0:01:30]} c5 {[%emt 0:03:35]} 54. Rh1 {[%emt 0:01:25]} Qa6 {[%emt 0:00:36]} 55. Rxh7+ {[%emt 0:00:48]} Kxh7 {[%emt 0:00:05]} 56. Qh5+ {[%emt 0:00:06]} Kg7 {[%emt 0:00:07]} 57. Rf2 {[%emt 0:01:48]} Rf8 {[%emt 0:00:22]} 58. Rxf8 {[%emt 0:01:26]} Bxf8 {[%emt 0:00:16]} 59. dxc5 {[%emt 0:03:13]} Qd3 {[%emt 0:00:55]} 60. Qf3 {[%emt 0:00:08]} d4 {[%emt 0:00:44]} 61. Qf6+ {[%emt 0:01:52]} Kg8 {[%emt 0:00:05]} 62. Bf2 {[%emt 0:00:27]} 1-0

[Event "European Womens-ch 2025"]
[Site "Rhodes"]
[Date "2025.04.11"]
[Round "11.7"]
[White "Khotenashvili, Bella"]
[Black "Zawadzka, Jolanta"]
[Result "1/2-1/2"]
[Annotator "ChessBase"]
[ECO "E66"]
[WhiteElo "2418"]
[BlackElo "2326"]
[PlyCount "84"]
[EventDate "2025.03.29"]
[EventType "swiss"]
[EventCountry "GRE"]
[SourceTitle "playchess.com"]
[Source "ChessBase"]
[SourceQuality "1"]
[TimeControl "40/5400+30:1800+30"]

1. Nf3 {[%emt 0:01:45]} Nf6 {[%emt 0:00:08]} 2. g3 {[%emt 0:00:24]} g6 {[%emt 0:00:06]} 3. d4 {[%emt 0:00:53]} Bg7 {[%emt 0:00:08]} 4. c4 {[%emt 0:00:06]} d6 {[%emt 0:00:17]} 5. Nc3 {[%emt 0:00:05]} O-O {[%emt 0:00:13]} 6. Bg2 {[%emt 0:00:04]} Nc6 {[%emt 0:00:09]} 7. d5 {[%emt 0:00:47]} Na5 {[%emt 0:00:21]} 8. b3 {[%emt 0:00:14]} c5 {[%emt 0:00:32]} 9. Bb2 {[%emt 0:05:23]} a6 {[%emt 0:00:20]} 10. O-O {[%emt 0:03:22]} Rb8 {[%emt 0:00:16]} 11. Nd2 {[%emt 0:07:17]} b5 {[%emt 0:00:11]} 12. cxb5 {[%emt 0:02:01]} axb5 {[%emt 0:00:23]} 13. Qc2 {[%emt 0:00:10]} e6 {[%emt 0:08:18]} 14. dxe6 {[%emt 0:03:23]} fxe6 {[%emt 0:01:43]} 15. Nde4 {[%emt 0:07:07]} Qe7 {[%emt 0:07:43]} 16. Rad1 {[%emt 0:11:00]} Nxe4 {[%emt 0:13:30]} 17. Nxe4 {[%emt 0:01:12]} Bxb2 {[%emt 0:00:07]} 18. Qxb2 {[%emt 0:00:03]} d5 {[%emt 0:00:44]} 19. Qc3 {[%emt 0:15:43]} Nb7 {[%emt 0:27:09]} 20. Qe5 {[%emt 0:01:41]} Ra8 {[%emt 0:00:04]} 21. Nc3 {[%emt 0:01:40]} Qg7 {[%emt 0:01:39]} 22. Qxg7+ {[%emt 0:07:02]} Kxg7 {[%emt 0:00:04]} 23. Rd2 {[%emt 0:00:16]} b4 {[%emt 0:05:23]} 24. Na4 {[%emt 0:01:06]} Bd7 {[%emt 0:02:49]} 25. Nb6 {[%emt 0:03:08]} Rad8 {[%emt 0:00:06]} 26. Nxd7 {[%emt 0:08:23]} Rxd7 {[%emt 0:00:04]} 27. e4 {[%emt 0:00:45]} Rfd8 {[%emt 0:00:30]} 28. Rfd1 {[%emt 0:00:42]} Nd6 {[%emt 0:00:31]} 29. Rc1 {[%emt 0:10:25]} Nxe4 {[%emt 0:09:59]} 30. Bxe4 {[%emt 0:00:12]} dxe4 {[%emt 0:00:03]} 31. Rxd7+ {[%emt 0:00:05]} Rxd7 {[%emt 0:00:03]} 32. Rxc5 {[%emt 0:00:19]} Rd1+ {[%emt 0:00:15]} 33. Kg2 {[%emt 0:00:05]} e3 {[%emt 0:02:01]} 34. fxe3 {[%emt 0:01:02]} Rd2+ {[%emt 0:00:04]} 35. Kh3 {[%emt 0:03:27]} Rxa2 {[%emt 0:00:57]} 36. Rc4 {[%emt 0:00:07]} h5 {[%emt 0:00:48]} 37. g4 {[%emt 0:01:54]} Re2 {[%emt 0:00:39]} 38. Re4 {[%emt 0:00:49]} Kf6 {[%emt 0:01:29]} 39. Kg3 {[%emt 0:01:07]} hxg4 {[%emt 0:00:21]} 40. Kxg4 {[%emt 0:00:00]} Rxh2 {[%emt 0:00:00]} 41. Rxb4 {[%emt 0:00:09]} Rg2+ {[%emt 0:01:06]} 42. Kf3 {[%emt 0:00:44]} Rb2 {[%emt 0:00:56]} 1/2-1/2

[Event "European Womens-ch 2025"]
[Site "Rhodes"]
[Date "2025.04.11"]
[Round "11.8"]
[White "Zhukova, Natalia"]
[Black "Danielian, Elina"]
[Result "1/2-1/2"]
[Annotator "ChessBase"]
[ECO "A21"]
[WhiteElo "2306"]
[BlackElo "2398"]
[PlyCount "252"]
[EventDate "2025.03.29"]
[EventType "swiss"]
[EventCountry "GRE"]
[SourceTitle "playchess.com"]
[Source "ChessBase"]
[SourceQuality "1"]
[TimeControl "40/5400+30:1800+30"]

1. c4 {[%emt 0:00:06]} e5 {[%emt 0:00:16]} 2. Nc3 {[%emt 0:00:11]} d6 {[%emt 0:00:36]} 3. Nf3 {[%emt 0:00:26]} f5 {[%emt 0:00:45]} 4. g3 {[%emt 0:00:48]} Nf6 {[%emt 0:01:39]} 5. Bg2 {[%emt 0:00:33]} Be7 {[%emt 0:02:09]} 6. O-O {[%emt 0:02:00]} O-O {[%emt 0:00:18]} 7. b4 {[%emt 0:02:35]} a5 {[%emt 0:19:09]} 8. b5 {[%emt 0:01:14]} h6 {[%emt 0:01:43]} 9. a4 {[%emt 0:08:52]} Qe8 {[%emt 0:04:40]} 10. d4 {[%emt 0:03:38]} e4 {[%emt 0:00:43]} 11. Ne1 {[%emt 0:04:03]} c6 {[%emt 0:09:56]} 12. d5 {[%emt 0:07:20]} cxb5 {[%emt 0:12:12]} 13. Nxb5 {[%emt 0:02:11]} Na6 {[%emt 0:00:23]} 14. Ba3 {[%emt 0:04:11]} Qd8 {[%emt 0:02:04]} 15. Nc2 {[%emt 0:01:55]} Ng4 {[%emt 0:02:49]} 16. Ncd4 {[%emt 0:06:11]} Ne5 {[%emt 0:00:20]} 17. Rc1 {[%emt 0:02:57]} Nc5 {[%emt 0:00:36]} 18. f3 {[%emt 0:07:35]} exf3 {[%emt 0:00:57]} 19. exf3 {[%emt 0:01:05]} f4 {[%emt 0:02:26]} 20. Ne2 {[%emt 0:10:19]} Qb6 {[%emt 0:12:44]} 21. Nxf4 {[%emt 0:04:37]} Bg5 {[%emt 0:10:10]} 22. Qd4 {[%emt 0:01:07]} Bxf4 {[%emt 0:03:08]} 23. gxf4 {[%emt 0:00:37]} Ned3 {[%emt 0:00:04]} 24. Rc2 {[%emt 0:14:32]} Bd7 {[%emt 0:02:20]} 25. Kh1 {[%emt 0:05:17]} Rae8 {[%emt 0:01:51]} 26. Rd2 {[%emt 0:01:17]} Bxb5 {[%emt 0:02:42]} 27. cxb5 {[%emt 0:02:05]} Nxf4 {[%emt 0:00:31]} 28. Rc2 {[%emt 0:02:07]} Rf6 {[%emt 0:02:29]} 29. Rg1 {[%emt 0:00:44]} Ne2 {[%emt 0:04:19]} 30. Rxe2 {[%emt 0:00:03]} Rxe2 {[%emt 0:00:04]} 31. Bh3 {[%emt 0:01:46]} Nd7 {[%emt 0:00:55]} 32. Qg4 {[%emt 0:02:09]} Re7 {[%emt 0:00:07]} 33. Bb2 {[%emt 0:00:26]} Rff7 {[%emt 0:00:38]} 34. Bd4 {[%emt 0:00:26]} Qc7 {[%emt 0:00:34]} 35. Qh4 {[%emt 0:00:34]} Nf8 {[%emt 0:00:29]} 36. Qxh6 {[%emt 0:00:13]} Qc4 {[%emt 0:00:29]} 37. Bf6 {[%emt 0:01:04]} Qxd5 {[%emt 0:00:58]} 38. Bxe7 {[%emt 0:00:08]} Rxe7 {[%emt 0:00:24]} 39. Qh4 {[%emt 0:00:47]} Rf7 {[%emt 0:00:28]} 40. Qe1 {[%emt 0:00:00]} Qe5 {[%emt 0:00:00]} 41. Qxa5 {[%emt 0:06:16]} Rf4 {[%emt 0:03:31]} 42. Qe1 {[%emt 0:10:50]} Rxa4 {[%emt 0:07:58]} 43. Qxe5 {[%emt 0:00:34]} dxe5 {[%emt 0:00:03]} 44. Rc1 {[%emt 0:04:03]} Rb4 {[%emt 0:04:00]} 45. Rc8 {[%emt 0:00:40]} Rb1+ {[%emt 0:03:46]} 46. Kg2 {[%emt 0:00:02]} Kf7 {[%emt 0:13:42]} 47. Rc7+ {[%emt 0:00:34]} Kf6 {[%emt 0:00:06]} 48. Rxb7 {[%emt 0:00:05]} Ng6 {[%emt 0:00:03]} 49. Kf2 {[%emt 0:04:31]} Rb2+ {[%emt 0:00:29]} 50. Kg3 {[%emt 0:04:45]} Nf4 {[%emt 0:00:42]} 51. Bf1 {[%emt 0:00:21]} g6 {[%emt 0:01:33]} 52. Rc7 {[%emt 0:00:58]} Kg5 {[%emt 0:00:43]} 53. h4+ {[%emt 0:00:39]} Kf6 {[%emt 0:00:34]} 54. Kg4 {[%emt 0:02:38]} Rb1 {[%emt 0:00:31]} 55. Rc6+ {[%emt 0:00:54]} Kg7 {[%emt 0:00:05]} 56. Kg5 {[%emt 0:00:42]} Rxf1 {[%emt 0:00:06]} 57. Rc7+ {[%emt 0:00:05]} Kf8 {[%emt 0:00:10]} 58. Ra7 {[%emt 0:02:04]} Rb1 {[%emt 0:01:15]} 59. Kf6 {[%emt 0:00:06]} Nd5+ {[%emt 0:00:12]} 60. Kxg6 {[%emt 0:00:26]} Rxb5 {[%emt 0:00:08]} 61. h5 {[%emt 0:00:50]} Ne7+ {[%emt 0:01:08]} 62. Kf6 {[%emt 0:00:13]} Rb6+ {[%emt 0:00:24]} 63. Kg5 {[%emt 0:00:06]} Kf7 {[%emt 0:00:50]} 64. Ra4 {[%emt 0:00:24]} Rb1 {[%emt 0:00:39]} 65. f4 {[%emt 0:01:01]} Rg1+ {[%emt 0:00:09]} 66. Kh4 {[%emt 0:00:03]} Nf5+ {[%emt 0:00:11]} 67. Kh3 {[%emt 0:00:02]} Rg3+ {[%emt 0:00:59]} 68. Kh2 {[%emt 0:00:01]} Rg4 {[%emt 0:00:19]} 69. Ra7+ {[%emt 0:00:10]} Kf6 {[%emt 0:00:31]} 70. Ra6+ {[%emt 0:00:07]} Ke7 {[%emt 0:00:29]} 71. fxe5 {[%emt 0:00:11]} Rg5 {[%emt 0:00:27]} 72. h6 {[%emt 0:00:37]} Rh5+ {[%emt 0:00:05]} 73. Kg2 {[%emt 0:00:05]} Nxh6 {[%emt 0:00:06]} 74. Kf3 {[%emt 0:00:16]} Rh4 {[%emt 0:00:15]} 75. Rf6 {[%emt 0:02:10]} Nf7 {[%emt 0:00:12]} 76. Ra6 {[%emt 0:00:43]} Nxe5+ {[%emt 0:00:06]} 77. Ke3 {[%emt 0:00:13]} Kd7 {[%emt 0:00:08]} 78. Ke2 {[%emt 0:00:26]} Nc6 {[%emt 0:00:12]} 79. Ke3 {[%emt 0:00:27]} Kd6 {[%emt 0:00:08]} 80. Kf3 {[%emt 0:00:26]} Kd5 {[%emt 0:00:11]} 81. Ra8 {[%emt 0:00:29]} Ne5+ {[%emt 0:00:15]} 82. Kg3 {[%emt 0:00:25]} Rg4+ {[%emt 0:00:07]} 83. Kf2 {[%emt 0:00:06]} Kd4 {[%emt 0:00:23]} 84. Ra4+ {[%emt 0:00:37]} Nc4 {[%emt 0:00:05]} 85. Kf3 {[%emt 0:00:09]} Rg8 {[%emt 0:00:08]} 86. Kf4 {[%emt 0:00:49]} Rf8+ {[%emt 0:00:21]} 87. Kg5 {[%emt 0:00:18]} Kd5 {[%emt 0:00:17]} 88. Rb4 {[%emt 0:01:01]} Nd6 {[%emt 0:01:35]} 89. Ra4 {[%emt 0:00:13]} Nf7+ {[%emt 0:01:33]} 90. Kf6 {[%emt 0:00:52]} Ne5+ {[%emt 0:00:08]} 91. Kg5 {[%emt 0:00:06]} Rg8+ {[%emt 0:00:26]} 92. Kf5 {[%emt 0:00:05]} Nc4 {[%emt 0:00:11]} 93. Rb4 {[%emt 0:00:54]} Ne3+ {[%emt 0:02:28]} 94. Kf6 {[%emt 0:00:03]} Rf8+ {[%emt 0:00:14]} 95. Kg6 {[%emt 0:01:27]} Ke5 {[%emt 0:00:14]} 96. Rb5+ {[%emt 0:00:18]} Nd5 {[%emt 0:00:14]} 97. Ra5 {[%emt 0:00:04]} Rd8 {[%emt 0:01:14]} 98. Kg5 {[%emt 0:01:19]} Rg8+ {[%emt 0:00:07]} 99. Kh5 {[%emt 0:00:04]} Ke4 {[%emt 0:00:42]} 100. Kh4 {[%emt 0:01:32]} Rg1 {[%emt 0:02:37]} 101. Kh5 {[%emt 0:01:28]} Nf6+ {[%emt 0:00:12]} 102. Kh6 {[%emt 0:00:28]} Rg2 {[%emt 0:00:31]} 103. Re5+ {[%emt 0:00:33]} Kd4 {[%emt 0:00:11]} 104. Ra5 {[%emt 0:00:08]} Nd7 {[%emt 0:00:21]} 105. Kh5 {[%emt 0:00:15]} Ke4 {[%emt 0:00:09]} 106. Kh4 {[%emt 0:00:21]} Ne5 {[%emt 0:00:16]} 107. Ra4+ {[%emt 0:00:18]} Kf5 {[%emt 0:00:49]} 108. Ra5 {[%emt 0:00:15]} Rg1 {[%emt 0:01:02]} 109. Kh3 {[%emt 0:00:18]} Rg8 {[%emt 0:00:39]} 110. Kh4 {[%emt 0:00:45]} Kf4 {[%emt 0:00:18]} 111. Ra4+ {[%emt 0:00:02]} Ke3 {[%emt 0:00:05]} 112. Kh5 {[%emt 0:00:36]} Nf3 {[%emt 0:01:12]} 113. Ra3+ {[%emt 0:00:25]} Kf4 {[%emt 0:00:15]} 114. Ra4+ {[%emt 0:00:30]} Kf5 {[%emt 0:00:09]} 115. Ra5+ {[%emt 0:00:06]} Ne5 {[%emt 0:00:04]} 116. Kh4 {[%emt 0:00:05]} Rg7 {[%emt 0:00:59]} 117. Kh3 {[%emt 0:00:06]} Ke4 {[%emt 0:00:34]} 118. Ra4+ {[%emt 0:00:11]} Ke3 {[%emt 0:00:06]} 119. Ra3+ {[%emt 0:00:26]} Nd3 {[%emt 0:00:07]} 120. Kh4 {[%emt 0:00:11]} Kf4 {[%emt 0:00:10]} 121. Ra4+ {[%emt 0:00:14]} Kf5 {[%emt 0:00:26]} 122. Ra5+ {[%emt 0:00:04]} Ne5 {[%emt 0:00:34]} 123. Kh3 {[%emt 0:00:03]} Rc7 {[%emt 0:01:00]} 124. Kg3 {[%emt 0:00:16]} Rc3+ {[%emt 0:00:04]} 125. Kf2 {[%emt 0:00:26]} Ke4 {[%emt 0:00:10]} 126. Ra4+ {[%emt 0:00:09]} Nc4 {[%emt 0:00:04]} 1/2-1/2